[Event "DMP-III LIGA Senior PK 2020"]
[Site "Bystre"]
[Date "2020.07.12"]
[Round "9.12"]
[White "Kruczek, Aleksandra"]
[Black "Polak, Sylwia"]
[Result "0-1"]
[ECO "D02"]
[WhiteElo "1038"]
[BlackElo "1614"]
[Annotator "NA"]
[PlyCount "76"]
[EventDate "2020.07.05"]
[EventType "team-tourn"]
[EventCountry "POL"]
[SourceTitle "playchess.com"]
[Source "ChessBase"]
[SourceQuality "1"]
[TimeControl "5400+30"]

1. d4 d5 2. Bf4 Nf6 3. Nf3 e6 4. Nbd2 c5 5. e3 Nc6 6. c4 cxd4 7. exd4 dxc4 8. Nxc4 Bb4+ 9. Bd2 Bxd2+ 10. Qxd2 O-O 11. Bd3 Nd5 12. a3 Qf6 13. Be4 Rd8 14. O-O Nf4 15. Rfd1 Nxd4 16. Nxd4 Rxd4 17. Qa5 g6 18. Nb6 Qd8 19. Bf3 Rxd1+ 20. Rxd1 Qxb6 21. Qxb6 axb6 22. Rd4 Nd5 23. h3 Ra5 24. g4 Bd7 25. Rd3 Bc6 26. b4 Ra8 27. h4 Nf4 28. Rc3 Bxf3 29. Rxf3 Nd5 30. Rg3 b5 31. h5 Nb6 32. h6 Kf8 33. f4 Nc4 34. f5 exf5 35. gxf5 Rxa3 36. Rg5 Rh3 37. f6 Rh5 38. Rxh5 gxh5 0-1

[Event "DMP-III LIGA Senior PK 2020"]
[Site "Bystre"]
[Date "2020.07.12"]
[Round "9.15"]
[White "Biesiadecki, Adam"]
[Black "Wojciechowski, Beniamin"]
[Result "1/2-1/2"]
[ECO "D11"]
[WhiteElo "1539"]
[BlackElo "1835"]
[Annotator "NA RC"]
[PlyCount "28"]
[EventDate "2020.07.05"]
[EventType "team-tourn"]
[EventCountry "POL"]
[SourceTitle "playchess.com"]
[Source "ChessBase"]
[SourceQuality "1"]
[TimeControl "5400+30"]

1. d4 {[%emt 0:00:00]} d5 {[%emt 0:00:00]} 2. c4 {[%emt 0:00:12]} c6 {[%emt 0:00:00]} 3. Nf3 {[%emt 0:00:06]} Nf6 {[%emt 0:00:00]} 4. g3 {[%emt 0:00:05]} Bf5 {[%emt 0:01:08]} 5. Bg2 {[%emt 0:00:44]} e6 {[%emt 0:00:09]} 6. O-O {[%emt 0:00:07]} Nbd7 {[%emt 0:01:04]} 7. Nbd2 {[%emt 0:01:36]} Be7 {[%emt 0:00:52]} 8. b3 {[%emt 0:00:54]} h6 {[%emt 0:00:33]} 9. Bb2 {[%emt 0:00:22]} O-O {[%emt 0:00:07]} 10. Re1 {[%emt 0:00:26]} Ne4 {[%emt 0:00:29]} 11. Ne5 {[%emt 0:00:46]} Nxd2 {[%emt 0:00:52]} 12. Qxd2 {[%emt 0:00:31]} Nxe5 {[%emt 0:00:19]} 13. dxe5 {[%emt 0:00:28]} dxc4 {[%emt 0:00:12]} 14. Qxd8 {[%emt 0:00:34]} Rfxd8 {[%emt 0:00:17]} 1/2-1/2

[Event "DMP-III LIGA Senior PK 2020"]
[Site "Bystre"]
[Date "2020.07.12"]
[Round "9.19"]
[White "Lach, Dariusz"]
[Black "Marut, Leszek"]
[Result "1/2-1/2"]
[ECO "D02"]
[WhiteElo "1748"]
[BlackElo "1863"]
[Annotator "NA"]
[PlyCount "72"]
[EventDate "2020.07.05"]
[EventType "team-tourn"]
[EventCountry "POL"]
[SourceTitle "playchess.com"]
[Source "ChessBase"]
[SourceQuality "1"]
[TimeControl "5400+30"]

1. d4 {[%emt 0:00:00]} d5 {[%emt 0:00:00]} 2. Nf3 {[%emt 0:00:10]} e6 {[%emt 0:00:26]} 3. e3 {[%emt 0:01:00]} Bd6 {[%emt 0:01:03]} 4. Bd3 {[%emt 0:02:47]} Nd7 {[%emt 0:00:54]} 5. b3 {[%emt 0:00:52]} f5 {[%emt 0:05:07]} 6. Bb2 {[%emt 0:01:53]} Ngf6 {[%emt 0:00:36]} 7. Nbd2 {[%emt 0:02:11]} c6 {[%emt 0:03:38]} 8. h3 {[%emt 0:01:33]} O-O {[%emt 0:01:51]} 9. O-O {[%emt 0:02:51]} Ne4 {[%emt 0:04:51]} 10. a4 {[%emt 0:07:26]} Qf6 {[%emt 0:09:44]} 11. Ba3 {[%emt 0:04:19]} Bxa3 {[%emt 0:03:39]} 12. Rxa3 {[%emt 0:01:31]} e5 {[%emt 0:01:22]} 13. Nxe5 {[%emt 0:04:37]} Nxe5 {[%emt 0:00:34]} 14. dxe5 {[%emt 0:00:14]} Qxe5 {[%emt 0:00:23]} 15. Nf3 {[%emt 0:01:20]} Qe7 {[%emt 0:05:08]} 16. Ra1 $11 {[%emt 0:02:31]} Be6 {[%emt 0:07:26]} 17. Nd4 {[%emt 0:08:33]} Rad8 {[%emt 0:02:31]} 18. Nxe6 {[%emt 0:05:51]} Qxe6 {[%emt 0:00:08]} 19. Bxe4 {[%emt 0:01:30]} fxe4 {[%emt 0:05:37]} 20. Qd4 {[%emt 0:00:46]} b6 {[%emt 0:02:52]} 21. b4 {[%emt 0:01:41]} Qd6 {[%emt 0:02:53]} 22. c3 {[%emt 0:02:04]} c5 {[%emt 0:02:34]} 23. Qd2 {[%emt 0:00:54]} d4 {[%emt 0:00:51]} 24. bxc5 {[%emt 0:01:30]} bxc5 {[%emt 0:00:06]} 25. cxd4 {[%emt 0:00:19]} cxd4 {[%emt 0:00:15]} 26. exd4 {[%emt 0:00:48]} Qxd4 {[%emt 0:00:12]} 27. Qxd4 {[%emt 0:00:48]} Rxd4 {[%emt 0:00:04]} 28. Ra2 {[%emt 0:00:19]} Rfd8 {[%emt 0:03:48]} 29. Re1 {[%emt 0:00:38]} Kf7 {[%emt 0:01:19]} 30. a5 {[%emt 0:00:13]} a6 {[%emt 0:02:05]} 31. Rb2 {[%emt 0:01:13]} Rd1 {[%emt 0:06:45]} 32. Kf1 {[%emt 0:02:28]} Rxe1+ {[%emt 0:00:47]} 33. Kxe1 {[%emt 0:00:05]} Rd5 {[%emt 0:00:04]} 34. Rb7+ {[%emt 0:00:46]} Kf8 {[%emt 0:00:29]} 35. Rb8+ {[%emt 0:00:12]} Kf7 {[%emt 0:00:03]} 36. Rb7+ {[%emt 0:00:09]} Kf8 {[%emt 0:00:01]} 1/2-1/2

[Event "DMP-III LIGA Senior PK 2020"]
[Site "Bystre"]
[Date "2020.07.12"]
[Round "9.20"]
[White "Dobrzanski, Krzysztof"]
[Black "Lach, Ireneusz"]
[Result "1/2-1/2"]
[ECO "A46"]
[WhiteElo "1722"]
[BlackElo "1897"]
[Annotator "NA RC"]
[PlyCount "111"]
[EventDate "2020.07.05"]
[EventType "team-tourn"]
[EventCountry "POL"]
[SourceTitle "playchess.com"]
[Source "ChessBase"]
[SourceQuality "1"]
[TimeControl "5400+30"]

1. d4 {[%emt 0:00:00]} Nf6 {[%emt 0:00:00]} 2. Nf3 {[%emt 0:00:00]} d6 {[%emt 0:00:30]} 3. c4 {[%emt 0:01:02]} Nbd7 {[%emt 0:00:22]} 4. Nc3 {[%emt 0:00:20]} e5 {[%emt 0:02:34]} 5. Bg5 {[%emt 0:02:07]} Be7 {[%emt 0:01:37]} 6. e3 {[%emt 0:02:13]} c6 {[%emt 0:04:51]} 7. Be2 {[%emt 0:02:38]} Qc7 {[%emt 0:05:42]} 8. h3 {[%emt 0:02:25]} O-O {[%emt 0:05:23]} 9. O-O {[%emt 0:04:12]} Re8 {[%emt 0:00:42]} 10. Rc1 {[%emt 0:03:30]} Nf8 {[%emt 0:11:22] [#] A54: Old Indian Defence with Nf3, but without e4.} 11. b4 $146 {[%emt 0:09:11]} ({Predecessor:} 11. Bxf6 Bxf6 12. Ne4 Be7 13. d5 c5 14. Qd2 f5 15. Nc3 e4 16. Nh2 Bf6 17. f4 exf3 18. Nxf3 {0-1 (48) De Souza Neto,H (1869)-Macedo,M (2036) Recife 2017}) 11... Ng6 {[%emt 0:00:40]} 12. d5 {[%emt 0:07:43]} Qd8 {[%emt 0:17:53]} 13. Qb3 {[%emt 0:05:21]} Bd7 {[%emt 0:14:32]} 14. Rfd1 {[%emt 0:06:56]} Qb8 {[%emt 0:14:52]} 15. Bxf6 {[%emt 0:07:11]} gxf6 {[%emt 0:02:25]} 16. Rd2 {[%emt 0:07:19]} Rc8 {[%emt 0:07:46]} 17. Rcd1 {[%emt 0:03:44]} c5 {[%emt 0:03:07]} 18. bxc5 {[%emt 0:02:28]} Rxc5 {[%emt 0:00:25]} 19. Ne4 {[%emt 0:02:02]} Rc8 {[%emt 0:00:46]} 20. Rb2 {[%emt 0:00:32]} b6 {[%emt 0:00:39]} 21. a4 {[%emt 0:00:42]} Qc7 {[%emt 0:00:20]} 22. Nfd2 {[%emt 0:04:37]} f5 {[%emt 0:00:33]} 23. Ng3 {[%emt 0:01:24]} Kh8 {[%emt 0:00:58]} 24. Qc2 {[%emt 0:00:51]} f4 {[%emt 0:00:32]} 25. Nf5 {[%emt 0:01:11]} fxe3 {[%emt 0:01:22]} 26. Nxe7 {[%emt 0:01:18]} exf2+ {[%emt 0:00:25]} 27. Kxf2 {[%emt 0:00:36]} Nxe7 {[%emt 0:00:07]} 28. Ne4 {[%emt 0:01:14]} f5 {[%emt 0:00:19]} 29. Nf6 {[%emt 0:02:04]} Rf8 $17 {[%emt 0:00:33]} 30. Nxd7 {[%emt 0:00:26]} Qxd7 {[%emt 0:00:07]} 31. Kg1 {[%emt 0:00:22]} Ng6 {[%emt 0:01:04]} 32. Bf1 {[%emt 0:01:28]} Rg8 {[%emt 0:01:39]} 33. a5 {[%emt 0:00:18]} Rab8 {[%emt 0:00:49]} 34. Rdb1 {[%emt 0:01:07]} Nf4 {[%emt 0:01:06]} 35. Kh2 {[%emt 0:00:23]} Qg7 {[%emt 0:00:36]} 36. Qf2 {[%emt 0:01:34]} Rbf8 {[%emt 0:00:36]} 37. axb6 {[%emt 0:00:46]} axb6 {[%emt 0:00:04]} 38. Rxb6 {[%emt 0:01:14]} Rf6 {[%emt 0:00:10]} 39. R1b2 {[%emt 0:01:40]} Rg6 {[%emt 0:00:22]} 40. c5 {[%emt 0:01:14]} dxc5 {[%emt 0:00:12]} 41. Rxg6 {[%emt 0:00:25]} Qxg6 {[%emt 0:00:26]} 42. Qxc5 {[%emt 0:00:33]} Qg3+ {[%emt 0:01:19]} 43. Kh1 {[%emt 0:00:31]} Qe1 {[%emt 0:00:49]} 44. Qb5 {[%emt 0:01:47]} Nh5 {[%emt 0:00:27]} 45. Kh2 {[%emt 0:01:07]} Ng3 {[%emt 0:00:33]} 46. Rb1 {[%emt 0:01:03]} Nxf1+ {[%emt 0:00:44]} 47. Qxf1 {[%emt 0:00:11]} Qxf1 {[%emt 0:00:32]} 48. Rxf1 {[%emt 0:00:07]} Rf8 {[%emt 0:00:31]} 49. Re1 {[%emt 0:00:07]} Re8 {[%emt 0:00:25]} 50. d6 {[%emt 0:01:34]} e4 {[%emt 0:00:34]} 51. Kg3 {[%emt 0:00:10]} Kg7 {[%emt 0:00:28]} 52. Kf4 {[%emt 0:01:07]} Kf6 {[%emt 0:00:08]} 53. d7 {[%emt 0:00:18]} Rd8 {[%emt 0:00:05]} 54. g4 {[%emt 0:00:04]} fxg4 {[%emt 0:00:13]} 55. hxg4 {[%emt 0:00:09]} Rxd7 {[%emt 0:00:07]} 56. Rxe4 {[%emt 0:00:05]} 1/2-1/2

[Event "DMP-III LIGA Senior PK 2020"]
[Site "Bystre"]
[Date "2020.07.12"]
[Round "9.21"]
[White "Janzer, Hubert"]
[Black "Palacki, Rafal"]
[Result "1-0"]
[ECO "A45"]
[WhiteElo "1893"]
[BlackElo "1755"]
[Annotator "NA RC"]
[PlyCount "137"]
[EventDate "2020.07.05"]
[EventType "team-tourn"]
[EventCountry "POL"]
[SourceTitle "playchess.com"]
[Source "ChessBase"]
[SourceQuality "1"]
[TimeControl "5400+30"]

1. d4 {[%emt 0:00:00]} Nf6 {[%emt 0:00:00]} 2. Bf4 {[%emt 0:00:00]} e6 {[%emt 0:00:46]} 3. e3 {[%emt 0:00:00]} c5 {[%emt 0:00:24]} 4. c3 {[%emt 0:00:00]} b6 {[%emt 0:01:39]} 5. Nd2 {[%emt 0:01:43]} Bb7 {[%emt 0:00:34]} 6. Ngf3 {[%emt 0:00:20]} Be7 {[%emt 0:02:38]} 7. Bd3 {[%emt 0:01:18]} Nc6 {[%emt 0:04:44]} 8. O-O {[%emt 0:03:50]} Nh5 {[%emt 0:02:32]} 9. Bg3 {[%emt 0:02:33]} Nxg3 {[%emt 0:02:09]} 10. fxg3 {[%emt 0:00:33]} d5 {[%emt 0:01:34]} 11. Qa4 {[%emt 0:04:50]} O-O {[%emt 0:04:39]} 12. e4 {[%emt 0:05:05]} cxd4 {[%emt 0:09:21]} 13. cxd4 {[%emt 0:01:44]} Nb4 {[%emt 0:01:11]} 14. Bb1 {[%emt 0:00:58]} Rc8 {[%emt 0:15:58]} 15. a3 $17 {[%emt 0:02:20]} dxe4 {[%emt 0:02:21]} 16. Bxe4 {[%emt 0:06:11]} Bc6 {[%emt 0:05:40]} 17. Bxc6 {[%emt 0:03:36]} Nxc6 {[%emt 0:00:08]} 18. Nb3 {[%emt 0:00:11]} Qd5 {[%emt 0:01:08]} 19. Rac1 {[%emt 0:15:13]} b5 {[%emt 0:02:06]} 20. Qa6 {[%emt 0:00:34]} Bf6 {[%emt 0:02:02]} 21. Rc3 {[%emt 0:03:23]} Rc7 {[%emt 0:17:44]} 22. Rfc1 {[%emt 0:01:58]} Nb8 {[%emt 0:01:02]} 23. Qa5 {[%emt 0:00:24]} Rd7 {[%emt 0:01:44]} 24. a4 {[%emt 0:01:06]} a6 {[%emt 0:00:46]} 25. axb5 {[%emt 0:01:08]} axb5 {[%emt 0:00:17]} 26. Qa3 {[%emt 0:03:27]} Rfd8 {[%emt 0:07:11]} 27. Rc5 {[%emt 0:01:42]} Qb7 {[%emt 0:00:51]} 28. Qa5 {[%emt 0:01:01]} Rd5 {[%emt 0:00:24]} 29. Rc7 {[%emt 0:01:40]} Qa6 {[%emt 0:00:18]} 30. Qc3 {[%emt 0:03:09]} Qd6 {[%emt 0:01:27]} 31. Rc8 {[%emt 0:05:28]} h6 {[%emt 0:01:17]} 32. Qc7 {[%emt 0:04:29]} Qb4 {[%emt 0:03:06]} 33. Rc3 {[%emt 0:00:27]} Rxc8 {[%emt 0:01:00]} 34. Qxc8+ {[%emt 0:00:08]} Rd8 {[%emt 0:00:07]} 35. Qc7 {[%emt 0:04:39]} Nd7 {[%emt 0:01:12]} 36. h3 {[%emt 0:00:53]} Nf8 {[%emt 0:01:01]} 37. Ne5 {[%emt 0:01:18]} Rxd4 {[%emt 0:00:35]} 38. Qxf7+ {[%emt 0:00:15]} Kh7 {[%emt 0:00:05]} 39. Nxd4 {[%emt 0:05:43]} Qxd4+ {[%emt 0:00:05]} 40. Kh2 {[%emt 0:00:13]} Qd6 {[%emt 0:03:00]} 41. Rf3 {[%emt 0:00:33]} Bxe5 {[%emt 0:00:29]} 42. Qxf8 {[%emt 0:00:45]} Bxg3+ {[%emt 0:00:07]} 43. Kh1 {[%emt 0:00:16]} Qd1+ {[%emt 0:00:26]} 44. Rf1 {[%emt 0:00:05]} Qd4 {[%emt 0:00:19]} 45. Qa3 {[%emt 0:01:06]} Bd6 {[%emt 0:00:24]} 46. Qb3 {[%emt 0:01:22]} Qe5 {[%emt 0:02:39]} 47. Qc2+ {[%emt 0:00:08]} Kg8 {[%emt 0:00:23]} 48. g4 {[%emt 0:00:12]} Qg3 {[%emt 0:01:29]} 49. Qg2 {[%emt 0:00:07]} Qe5 {[%emt 0:00:10]} 50. b3 {[%emt 0:01:25]} Qe3 {[%emt 0:00:18]} 51. Qf3 {[%emt 0:01:21]} Qe5 {[%emt 0:00:02]} 52. Rf2 {[%emt 0:00:51]} Qa1+ {[%emt 0:00:21]} 53. Kg2 {[%emt 0:00:07]} Qe5 {[%emt 0:00:05]} 54. Re2 {[%emt 0:01:25]} Qd5 {[%emt 0:02:23]} 55. Qxd5 {[%emt 0:00:09]} exd5 {[%emt 0:00:03]} 56. Rd2 {[%emt 0:00:15]} Be7 {[%emt 0:00:41]} 57. Rxd5 {[%emt 0:00:06]} b4 {[%emt 0:00:06]} 58. Rf5 {[%emt 0:00:31]} Bh4 {[%emt 0:00:52]} 59. Kf3 {[%emt 0:00:13]} g6 {[%emt 0:00:29]} 60. Rb5 {[%emt 0:00:43]} Be1 {[%emt 0:00:08]} 61. Rb7 {[%emt 0:00:06]} Bc3 62. Ke4 {[%emt 0:00:28]} h5 {[%emt 0:01:01]} 63. gxh5 {[%emt 0:00:19]} gxh5 {[%emt 0:00:04]} 64. Kf5 {[%emt 0:00:04]} h4 {[%emt 0:00:22]} 65. Kg4 {[%emt 0:00:14]} Be1 {[%emt 0:00:04]} 66. Re7 {[%emt 0:00:06]} Bc3 {[%emt 0:00:34]} 67. Re4 {[%emt 0:00:28]} Kf7 {[%emt 0:00:28]} 68. Kxh4 {[%emt 0:00:07]} Kf6 {[%emt 0:00:06]} 69. Kg4 {[%emt 0:00:07]} 1-0

[Event "DMP-III LIGA Senior PK 2020"]
[Site "Bystre"]
[Date "2020.07.12"]
[Round "9.22"]
[White "Zajac, Karol"]
[Black "Lach, Tomasz"]
[Result "1/2-1/2"]
[ECO "A06"]
[WhiteElo "1652"]
[BlackElo "1833"]
[Annotator "NA RC"]
[PlyCount "96"]
[EventDate "2020.07.05"]
[EventType "team-tourn"]
[EventCountry "POL"]
[SourceTitle "playchess.com"]
[Source "ChessBase"]
[SourceQuality "1"]
[TimeControl "5400+30"]

1. Nf3 d5 2. c4 c6 3. e3 Nf6 4. Be2 a6 5. O-O Bg4 6. b3 e6 7. Bb2 Nbd7 8. d3 Bc5 9. Nbd2 h6 10. Nd4 Bxe2 11. Qxe2 O-O 12. Rfd1 Re8 13. Rac1 Rc8 14. Nf1 Qe7 15. cxd5 cxd5 16. Ng3 Red8 $11 17. Nf3 Ba3 18. Rc3 Rxc3 19. Bxc3 Rc8 20. Bb2 Bxb2 21. Qxb2 Qc5 22. h3 Qc2 23. Qxc2 Rxc2 24. Rd2 Rc1+ 25. Kh2 Kf8 26. Ne2 Rc8 27. Ned4 Ke7 28. g4 Ne8 29. Ne1 Nd6 30. Rc2 Rxc2 31. Ndxc2 Nb5 32. d4 Nc3 33. a4 Kd6 34. Kg2 Ne4 35. f3 Nd2 36. Na1 Kc6 37. Kf2 b5 38. Ke2 Nb1 39. axb5+ Kxb5 40. Kd3 Na3 41. Kc3 Kb6 42. Nac2 Nb5+ 43. Kd2 Nd6 44. Nd3 a5 45. Kc3 Nb5+ 46. Kd2 Nd6 47. Kc3 Nb5+ 48. Kd2 Nd6 1/2-1/2

[Event "DMP-III LIGA Senior PK 2020"]
[Site "Bystre"]
[Date "2020.07.12"]
[Round "9.23"]
[White "Lach, Mateusz"]
[Black "Materniak, Aleksander"]
[Result "0-1"]
[ECO "E61"]
[WhiteElo "1674"]
[BlackElo "1660"]
[Annotator "NA RC"]
[PlyCount "96"]
[EventDate "2020.07.05"]
[EventType "team-tourn"]
[EventCountry "POL"]
[SourceTitle "playchess.com"]
[Source "ChessBase"]
[SourceQuality "1"]
[TimeControl "5400+30"]

1. d4 {[%emt 0:00:00]} Nf6 {[%emt 0:00:00]} 2. c4 {[%emt 0:00:00]} g6 {[%emt 0:00:00]} 3. Nc3 {[%emt 0:05:17]} Bg7 {[%emt 0:00:00]} 4. e3 {[%emt 0:00:23]} O-O {[%emt 0:00:16]} 5. Nf3 {[%emt 0:03:04]} d6 {[%emt 0:01:21]} 6. Be2 {[%emt 0:01:38]} Bf5 {[%emt 0:02:05]} 7. O-O {[%emt 0:00:47]} a5 {[%emt 0:00:45]} 8. a3 {[%emt 0:00:44]} Na6 {[%emt 0:01:00]} 9. Bd3 {[%emt 0:02:45]} Bxd3 {[%emt 0:03:42]} 10. Qxd3 {[%emt 0:01:42]} Nd7 {[%emt 0:01:01]} 11. b3 {[%emt 0:01:25]} e5 {[%emt 0:01:01]} 12. Bb2 {[%emt 0:00:56]} f5 {[%emt 0:02:30]} 13. dxe5 {[%emt 0:02:40]} dxe5 {[%emt 0:04:25]} 14. Qd5+ {[%emt 0:02:44]} Kh8 {[%emt 0:00:35]} 15. Na4 {[%emt 0:00:38]} c6 {[%emt 0:02:56]} 16. Qd6 {[%emt 0:02:28]} Ndc5 {[%emt 0:09:07]} 17. Qxd8 {[%emt 0:00:49]} Raxd8 {[%emt 0:01:09]} 18. Nxc5 {[%emt 0:01:09]} Nxc5 {[%emt 0:00:12]} 19. b4 {[%emt 0:00:31]} Nd3 {[%emt 0:13:10]} 20. Bc3 {[%emt 0:00:51]} axb4 {[%emt 0:00:54]} 21. axb4 {[%emt 0:00:24]} Ra8 {[%emt 0:00:46]} 22. Ng5 {[%emt 0:05:18]} Rfe8 {[%emt 0:02:39]} 23. Nf7+ {[%emt 0:06:23]} Kg8 {[%emt 0:00:18]} 24. Nd6 {[%emt 0:00:08]} Reb8 {[%emt 0:06:51]} 25. e4 {[%emt 0:04:38]} Nf4 {[%emt 0:06:03]} 26. Kh1 {[%emt 0:05:08]} Ne2 {[%emt 0:01:48]} 27. Bb2 {[%emt 0:02:10]} Nd4 {[%emt 0:07:26]} 28. Bxd4 {[%emt 0:11:40]} exd4 {[%emt 0:00:10]} 29. exf5 {[%emt 0:00:13]} Bf8 {[%emt 0:09:30]} 30. Ne4 {[%emt 0:14:06]} gxf5 {[%emt 0:03:50]} 31. Nf6+ {[%emt 0:01:30]} Kf7 {[%emt 0:00:46]} 32. Nd7 {[%emt 0:00:07]} Rd8 {[%emt 0:00:51]} 33. Ne5+ {[%emt 0:01:48]} Kf6 {[%emt 0:03:13]} 34. Nd3 {[%emt 0:00:10]} Re8 35. g3 {[%emt 0:03:15]} Rxa1 {[%emt 0:03:23]} 36. Rxa1 {[%emt 0:00:01]} Re2 {[%emt 0:00:13]} 37. c5 {[%emt 0:01:08]} Rd2 {[%emt 0:02:38]} 38. Ra3 {[%emt 0:08:11]} Bh6 {[%emt 0:01:20]} 39. Kg2 {[%emt 0:03:40]} Ke6 {[%emt 0:00:16]} 40. Ne1 {[%emt 0:03:51]} Be3 {[%emt 0:01:55]} 41. Nd3 {[%emt 0:00:37]} Kd5 {[%emt 0:02:34]} 42. Ra7 {[%emt 0:01:58]} Ke4 {[%emt 0:02:21]} 43. Nf4 {[%emt 0:01:24]} Rxf2+ {[%emt 0:00:52]} 44. Kh3 {[%emt 0:00:21]} Bxf4 {[%emt 0:00:43]} 45. gxf4 {[%emt 0:00:06]} d3 {[%emt 0:02:19]} 46. Rxb7 {[%emt 0:00:01]} d2 {[%emt 0:00:17]} 47. Rd7 {[%emt 0:00:19]} Rf3+ {[%emt 0:00:34]} 48. Kg2 {[%emt 0:00:09]} Rd3 {[%emt 0:00:19]} 0-1

[Event "DMP-III LIGA Senior PK 2020"]
[Site "Bystre"]
[Date "2020.07.12"]
[Round "9.24"]
[White "Tarsa, Joanna"]
[Black "Wladyka, Angelika"]
[Result "1/2-1/2"]
[ECO "B01"]
[WhiteElo "1574"]
[BlackElo "1601"]
[Annotator "NA"]
[PlyCount "37"]
[EventDate "2020.07.05"]
[EventType "team-tourn"]
[EventCountry "POL"]
[SourceTitle "playchess.com"]
[Source "ChessBase"]
[SourceQuality "1"]
[TimeControl "5400+30"]

1. e4 {[%emt 0:00:00]} d5 {[%emt 0:00:00]} 2. exd5 {[%emt 0:00:00]} Qxd5 {[%emt 0:00:00]} 3. d4 {[%emt 0:00:00]} c6 {[%emt 0:00:12]} 4. Nc3 {[%emt 0:01:43]} Qd6 {[%emt 0:01:38]} 5. Nf3 {[%emt 0:01:08]} Bg4 {[%emt 0:01:42]} 6. Be2 {[%emt 0:00:34]} Nf6 {[%emt 0:00:46]} 7. O-O {[%emt 0:01:47]} e6 {[%emt 0:04:58]} 8. Be3 {[%emt 0:01:28]} Be7 {[%emt 0:03:10]} 9. Qd2 {[%emt 0:03:39]} Qc7 {[%emt 0:06:41]} 10. Bf4 {[%emt 0:04:59]} Bd6 {[%emt 0:00:51]} 11. Bxd6 {[%emt 0:00:07]} Qxd6 {[%emt 0:00:05]} 12. h3 {[%emt 0:00:51]} Bxf3 {[%emt 0:03:10]} 13. Bxf3 {[%emt 0:00:19]} Nbd7 {[%emt 0:01:48]} 14. Rad1 {[%emt 0:03:19]} O-O {[%emt 0:05:38]} 15. Ne4 {[%emt 0:03:11]} Nxe4 {[%emt 0:04:00]} 16. Bxe4 {[%emt 0:00:13]} Nf6 {[%emt 0:00:04]} 17. Bf3 {[%emt 0:04:39]} Rad8 {[%emt 0:05:56]} 18. c3 {[%emt 0:01:08]} Rfe8 {[%emt 0:01:43]} 19. Qc2 {[%emt 0:01:07]} 1/2-1/2

[Event "DMP-III LIGA Senior PK 2020"]
[Site "Bystre"]
[Date "2020.07.12"]
[Round "9.26"]
[White "Marciniak, Leonard"]
[Black "Mazurkiewicz, Andrzej"]
[Result "1/2-1/2"]
[ECO "B01"]
[WhiteElo "1672"]
[BlackElo "1608"]
[Annotator "NA"]
[PlyCount "81"]
[EventDate "2020.07.05"]
[EventType "team-tourn"]
[EventCountry "POL"]
[SourceTitle "playchess.com"]
[Source "ChessBase"]
[SourceQuality "1"]
[TimeControl "5400+30"]

1. e4 {[%emt 0:00:00]} d5 {[%emt 0:00:00]} 2. exd5 {[%emt 0:00:00]} Qxd5 {[%emt 0:00:00]} 3. Nc3 {[%emt 0:00:00]} Qd6 {[%emt 0:00:02]} 4. g3 {[%emt 0:00:00]} g6 {[%emt 0:00:54]} 5. Bg2 {[%emt 0:00:09]} Bg7 {[%emt 0:00:28]} 6. Nge2 {[%emt 0:00:16]} c5 {[%emt 0:01:01]} 7. d3 {[%emt 0:00:36]} e5 {[%emt 0:01:42]} 8. Be3 {[%emt 0:00:23]} f5 {[%emt 0:01:10]} 9. f4 {[%emt 0:02:20]} Ne7 {[%emt 0:00:49]} 10. fxe5 {[%emt 0:00:25]} Bxe5 {[%emt 0:00:58]} 11. Qd2 {[%emt 0:00:44]} O-O {[%emt 0:01:57]} 12. O-O {[%emt 0:02:14]} a6 {[%emt 0:00:12]} 13. Bf4 {[%emt 0:01:41]} Nbc6 {[%emt 0:00:16]} 14. Rae1 {[%emt 0:03:08]} Bd7 {[%emt 0:01:05]} 15. b3 {[%emt 0:00:22]} b5 {[%emt 0:04:38]} 16. a4 {[%emt 0:01:51]} b4 {[%emt 0:00:18]} 17. Nd1 {[%emt 0:00:34]} Nd5 {[%emt 0:03:07]} 18. Bxe5 {[%emt 0:03:06]} Nxe5 {[%emt 0:01:27]} 19. Nf4 {[%emt 0:02:10]} Bc6 {[%emt 0:01:39]} 20. Nxd5 {[%emt 0:03:55]} Bxd5 {[%emt 0:00:26]} 21. Bxd5+ {[%emt 0:00:22]} Qxd5 {[%emt 0:00:27]} 22. Qf4 {[%emt 0:00:23]} Rae8 {[%emt 0:02:02]} 23. Ne3 {[%emt 0:00:23]} Qd4 {[%emt 0:00:32]} 24. Kg2 {[%emt 0:01:40]} Qxf4 {[%emt 0:04:54]} 25. gxf4 {[%emt 0:02:23]} Nc6 {[%emt 0:01:26]} 26. Nd5 {[%emt 0:02:03]} Kf7 {[%emt 0:02:58]} 27. Nc7 {[%emt 0:01:45]} Rxe1 {[%emt 0:02:35]} 28. Rxe1 {[%emt 0:00:02]} a5 {[%emt 0:01:50]} 29. Ne6 {[%emt 0:02:25]} Rc8 {[%emt 0:02:39]} 30. Ng5+ {[%emt 0:07:08]} Kg8 {[%emt 0:00:23]} 31. Re2 {[%emt 0:00:51]} h6 {[%emt 0:00:31]} 32. Nf3 {[%emt 0:00:23]} Nd4 {[%emt 0:00:36]} 33. Rd2 {[%emt 0:01:10]} Nxf3 {[%emt 0:00:59]} 34. Kxf3 {[%emt 0:00:02]} Kf7 {[%emt 0:01:24]} 35. Re2 {[%emt 0:01:21]} g5 {[%emt 0:00:53]} 36. Re5 {[%emt 0:00:35]} Kf6 {[%emt 0:01:27]} 37. Rd5 {[%emt 0:01:27]} Ke6 {[%emt 0:01:19]} 38. Re5+ {[%emt 0:00:55]} Kf6 {[%emt 0:00:06]} 39. Rd5 {[%emt 0:04:32]} Ke6 {[%emt 0:00:51]} 40. Re5+ {[%emt 0:00:32]} Kf6 {[%emt 0:00:03]} 41. Rd5 {[%emt 0:03:27]} 1/2-1/2